[Event "Titled Tuesday Blitz April 11 Early 2023"]
[White "HSH1987"]
[Black "Drygalov, Andrey"]
[BlackFideId "24171735"]
[WhiteElo "2698"]
[BlackElo "2466"]
[Result "0-1"]
[Round "11"]
[TimeControl "180+2"]
[Date "2023.04.11"]
[WhiteClock "0:00:12"]
[BlackClock "0:00:28"]

1. e4 {[%clk 0:03:00]}  c5 {[%clk 0:02:59]} 2. Nc3 {[%clk 0:03:00]}  d6 {[%clk 0:02:59]} 3. g3 {[%clk 0:03:01]}  Nc6 {[%clk 0:02:59]} 4. Bg2 {[%clk 0:03:01]}  g6 {[%clk 0:02:59]} 5. d3 {[%clk 0:03:01]}  Bg7 {[%clk 0:03:00]} 6. Nge2 {[%clk 0:03:02]}  Rb8 {[%clk 0:03:00]} 7. O-O {[%clk 0:03:01]}  b5 {[%clk 0:02:59]} 8. Rb1 {[%clk 0:02:53]}  b4 {[%clk 0:02:58]} 9. Nd5 {[%clk 0:02:53]}  e6 {[%clk 0:02:52]} 10. Ne3 {[%clk 0:02:52]}  Nge7 {[%clk 0:02:51]} 11. b3 {[%clk 0:02:31]}  O-O {[%clk 0:02:50]} 12. Bb2 {[%clk 0:02:30]}  Nd4 {[%clk 0:02:50]} 13. a4 {[%clk 0:02:14]}  Nec6 {[%clk 0:02:49]} 14. Nc4 {[%clk 0:02:02]}  Nxe2+ {[%clk 0:02:46]} 15. Qxe2 {[%clk 0:02:02]}  Nd4 {[%clk 0:02:47]} 16. Qd1 {[%clk 0:02:00]}  d5 {[%clk 0:02:47]} 17. exd5 {[%clk 0:02:00]}  exd5 {[%clk 0:02:48]} 18. Nd2 {[%clk 0:01:58]}  Re8 {[%clk 0:02:44]} 19. h3 {[%clk 0:01:54]}  Ne2+ {[%clk 0:02:35]} 20. Kh2 {[%clk 0:01:54]}  Nc3 {[%clk 0:02:35]} 21. Bxc3 {[%clk 0:01:54]}  bxc3 {[%clk 0:02:36]} 22. Nf3 {[%clk 0:01:52]}  Bf5 {[%clk 0:02:23]} 23. Re1 {[%clk 0:01:51]}  Qd6 {[%clk 0:02:22]} 24. Kg1 {[%clk 0:01:42]}  h6 {[%clk 0:02:17]} 25. g4 {[%clk 0:01:41]}  Bd7 {[%clk 0:02:12]} 26. Rxe8+ {[%clk 0:01:39]}  Rxe8 {[%clk 0:02:12]} 27. Qf1 {[%clk 0:01:40]}  Qf4 {[%clk 0:02:05]} 28. Re1 {[%clk 0:01:38]}  Be6 {[%clk 0:02:05]} 29. Qe2 {[%clk 0:01:34]}  Rd8 {[%clk 0:01:59]} 30. Qe3 {[%clk 0:01:33]}  Qxe3 {[%clk 0:01:36]} 31. fxe3 {[%clk 0:01:18]}  d4 {[%clk 0:01:35]} 32. exd4 {[%clk 0:01:06]}  cxd4 {[%clk 0:01:35]} 33. Kf2 {[%clk 0:01:01]}  Bf8 {[%clk 0:01:25]} 34. Ng1 {[%clk 0:00:59]}  Be7 {[%clk 0:01:14]} 35. Kg3 {[%clk 0:00:54]}  Bg5 {[%clk 0:01:13]} 36. Ne2 {[%clk 0:00:52]}  Be3 {[%clk 0:01:08]} 37. Rf1 {[%clk 0:00:50]}  Kg7 {[%clk 0:01:04]} 38. Be4 {[%clk 0:00:49]}  f5 {[%clk 0:00:55]} 39. Bf3 {[%clk 0:00:43]}  Kf6 {[%clk 0:00:49]} 40. gxf5 {[%clk 0:00:36]}  gxf5 {[%clk 0:00:48]} 41. Kh2 {[%clk 0:00:33]}  Ke5 {[%clk 0:00:47]} 42. Ng3 {[%clk 0:00:27]}  Rb8 {[%clk 0:00:36]} 43. Bd1 {[%clk 0:00:25]}  Rg8 {[%clk 0:00:32]} 44. Nh5 {[%clk 0:00:23]}  Bd5 {[%clk 0:00:29]} 45. Bf3 {[%clk 0:00:22]}  Bxb3 {[%clk 0:00:28]} 46. Bd1 {[%clk 0:00:16]}  Bd5 {[%clk 0:00:27]} 47. Bf3 {[%clk 0:00:16]}  Bxf3 {[%clk 0:00:28]} 48. Rxf3 {[%clk 0:00:16]}  Rb8 {[%clk 0:00:28]} 49. Ng7 {[%clk 0:00:14]}  f4 {[%clk 0:00:27]} 50. Nh5 {[%clk 0:00:12]}  Rb2 {[%clk 0:00:28]} 0-1


[Site "https://www.chess.com"]

[Event "Titled Tuesday Blitz April 11 Early 2023"]
[White "Belozerov, Andrei"]
[Black "Kravtsiv, Martyn"]
[WhiteFideId "4120213"]
[BlackFideId "14113147"]
[WhiteElo "2373"]
[BlackElo "2695"]
[Result "1-0"]
[Round "11"]
[TimeControl "180+2"]
[Date "2023.04.11"]
[WhiteClock "0:00:28"]
[BlackClock "0:00:06"]

1. e4 {[%clk 0:03:00]}  e5 {[%clk 0:02:59]} 2. Nf3 {[%clk 0:03:00]}  Nc6 {[%clk 0:03:00]} 3. Bb5 {[%clk 0:03:00]}  a6 {[%clk 0:03:00]} 4. Ba4 {[%clk 0:03:00]}  Nf6 {[%clk 0:02:59]} 5. O-O {[%clk 0:03:00]}  Be7 {[%clk 0:02:59]} 6. Re1 {[%clk 0:03:00]}  b5 {[%clk 0:02:58]} 7. Bb3 {[%clk 0:03:00]}  O-O {[%clk 0:02:57]} 8. c3 {[%clk 0:03:00]}  d5 {[%clk 0:02:57]} 9. exd5 {[%clk 0:02:59]}  Nxd5 {[%clk 0:02:57]} 10. Nxe5 {[%clk 0:03:00]}  Nxe5 {[%clk 0:02:58]} 11. Rxe5 {[%clk 0:03:00]}  c6 {[%clk 0:02:58]} 12. d3 {[%clk 0:03:00]}  Bd6 {[%clk 0:02:58]} 13. Re1 {[%clk 0:03:00]}  Bf5 {[%clk 0:02:58]} 14. Qf3 {[%clk 0:02:59]}  Re8 {[%clk 0:02:58]} 15. Rxe8+ {[%clk 0:02:50]}  Qxe8 {[%clk 0:02:58]} 16. Nd2 {[%clk 0:02:50]}  Qe1+ {[%clk 0:02:28]} 17. Nf1 {[%clk 0:02:49]}  Bg6 {[%clk 0:02:18]} 18. g3 {[%clk 0:02:46]}  h5 {[%clk 0:01:51]} 19. Bxd5 {[%clk 0:02:22]}  cxd5 {[%clk 0:01:49]} 20. Qxd5 {[%clk 0:02:23]}  Rd8 {[%clk 0:01:43]} 21. Bg5 {[%clk 0:02:23]}  Qxa1 {[%clk 0:01:42]} 22. Bxd8 {[%clk 0:02:22]}  Bf8 {[%clk 0:01:43]} 23. c4 {[%clk 0:01:43]}  Qxa2 {[%clk 0:01:35]} 24. Ne3 {[%clk 0:01:35]}  Qb1+ {[%clk 0:01:34]} 25. Kg2 {[%clk 0:01:35]}  Bxd3 {[%clk 0:01:34]} 26. Qd4 {[%clk 0:01:23]}  bxc4 {[%clk 0:01:33]} 27. Ba5 {[%clk 0:01:17]}  Be4+ {[%clk 0:01:29]} 28. f3 {[%clk 0:01:16]}  Bd3 {[%clk 0:01:27]} 29. Bc3 {[%clk 0:01:07]}  Be2 {[%clk 0:01:23]} 30. Qd8 {[%clk 0:00:58]}  Qd3 {[%clk 0:01:16]} 31. Qe8 {[%clk 0:00:58]}  Qd6 {[%clk 0:00:58]} 32. Bxg7 {[%clk 0:00:57]}  Qe7 {[%clk 0:00:41]} 33. Qxf8+ {[%clk 0:00:56]}  Qxf8 {[%clk 0:00:40]} 34. Bxf8 {[%clk 0:00:56]}  Kxf8 {[%clk 0:00:41]} 35. Kf2 {[%clk 0:00:56]}  Bd3 {[%clk 0:00:41]} 36. Nd5 {[%clk 0:00:55]}  Bc2 {[%clk 0:00:18]} 37. Ke3 {[%clk 0:00:55]}  Kg7 {[%clk 0:00:17]} 38. Kd4 {[%clk 0:00:52]}  Bd1 {[%clk 0:00:17]} 39. f4 {[%clk 0:00:49]}  Bb3 {[%clk 0:00:15]} 40. Ne3 {[%clk 0:00:46]}  Kg6 {[%clk 0:00:15]} 41. Nxc4 {[%clk 0:00:46]}  Kf5 {[%clk 0:00:15]} 42. Ne3+ {[%clk 0:00:45]}  Ke6 {[%clk 0:00:15]} 43. Ke4 {[%clk 0:00:43]}  Ba2 {[%clk 0:00:11]} 44. f5+ {[%clk 0:00:34]}  Kd6 {[%clk 0:00:12]} 45. Kd4 {[%clk 0:00:31]}  f6 {[%clk 0:00:09]} 46. Ng2 {[%clk 0:00:28]}  Bb1 {[%clk 0:00:08]} 47. Nf4 {[%clk 0:00:28]}  Bxf5 {[%clk 0:00:05]} 48. Nxh5 {[%clk 0:00:28]}  Ke6 {[%clk 0:00:06]} 49. Ng7+ {[%clk 0:00:28]} 1-0


[Site "https://www.chess.com"]

[Event "Titled Tuesday Blitz April 11 Early 2023"]
[White "Durarbayli, Vasif"]
[Black "Budrewicz, Krzysztof"]
[WhiteFideId "13402935"]
[BlackFideId "1127950"]
[WhiteElo "2551"]
[BlackElo "2230"]
[Result "1-0"]
[Round "11"]
[TimeControl "180+2"]
[Date "2023.04.11"]
[WhiteClock "0:01:16"]
[BlackClock "0:01:18"]

1. e4 {[%clk 0:03:00]}  g6 {[%clk 0:02:51]} 2. d4 {[%clk 0:02:55]}  Bg7 {[%clk 0:02:52]} 3. Nc3 {[%clk 0:02:56]}  d6 {[%clk 0:02:53]} 4. Be3 {[%clk 0:02:56]}  a6 {[%clk 0:02:53]} 5. g4 {[%clk 0:02:57]}  b5 {[%clk 0:02:52]} 6. Bg2 {[%clk 0:02:57]}  Bb7 {[%clk 0:02:52]} 7. h4 {[%clk 0:02:57]}  h6 {[%clk 0:02:52]} 8. Nge2 {[%clk 0:02:46]}  Nd7 {[%clk 0:02:51]} 9. Ng3 {[%clk 0:02:46]}  e6 {[%clk 0:02:48]} 10. Qd2 {[%clk 0:02:40]}  Ngf6 {[%clk 0:02:40]} 11. f3 {[%clk 0:02:30]}  e5 {[%clk 0:02:39]} 12. g5 {[%clk 0:02:25]}  hxg5 {[%clk 0:02:36]} 13. hxg5 {[%clk 0:02:26]}  Rxh1+ {[%clk 0:02:36]} 14. Bxh1 {[%clk 0:02:26]}  Ng8 {[%clk 0:02:29]} 15. d5 {[%clk 0:02:25]}  Nb6 {[%clk 0:02:24]} 16. b3 {[%clk 0:02:21]}  Ne7 {[%clk 0:02:21]} 17. O-O-O {[%clk 0:02:19]}  Qd7 {[%clk 0:02:19]} 18. Bg2 {[%clk 0:02:18]}  O-O-O {[%clk 0:02:18]} 19. Qf2 {[%clk 0:02:12]}  Na8 {[%clk 0:02:13]} 20. a4 {[%clk 0:02:07]}  Rh8 {[%clk 0:02:10]} 21. axb5 {[%clk 0:02:03]}  axb5 {[%clk 0:02:10]} 22. Bf1 {[%clk 0:02:03]}  c6 {[%clk 0:02:04]} 23. dxc6 {[%clk 0:01:41]}  Bxc6 {[%clk 0:02:04]} 24. Bc5 {[%clk 0:01:40]}  dxc5 {[%clk 0:01:30]} 25. Rxd7 {[%clk 0:01:37]}  Kxd7 {[%clk 0:01:31]} 26. Qxc5 {[%clk 0:01:36]}  Nc7 {[%clk 0:01:31]} 27. Nxb5 {[%clk 0:01:32]}  Nxb5 {[%clk 0:01:21]} 28. Bxb5 {[%clk 0:01:31]}  Rh3 {[%clk 0:01:21]} 29. Bxc6+ {[%clk 0:01:28]}  Nxc6 {[%clk 0:01:21]} 30. Qd5+ {[%clk 0:01:28]}  Kc7 {[%clk 0:01:18]} 31. Qxf7+ {[%clk 0:01:27]}  Kb6 {[%clk 0:01:18]} 32. Ne2 {[%clk 0:01:16]} 1-0


[Site "https://www.chess.com"]

[Event "Titled Tuesday Blitz April 11 Early 2023"]
[White "Grigoriants, Sergey"]
[Black "Bacallao Alonso, Yusnel"]
[WhiteFideId "4130804"]
[BlackFideId "3507416"]
[WhiteElo "2502"]
[BlackElo "2561"]
[Result "1/2-1/2"]
[Round "11"]
[TimeControl "180+2"]
[Date "2023.04.11"]
[WhiteClock "0:00:19"]
[BlackClock "0:00:05"]

1. d4 {[%clk 0:03:00]}  d5 {[%clk 0:02:54]} 2. c4 {[%clk 0:03:00]}  e6 {[%clk 0:02:52]} 3. Nc3 {[%clk 0:03:00]}  a6 {[%clk 0:02:52]} 4. c5 {[%clk 0:02:55]}  b6 {[%clk 0:02:51]} 5. cxb6 {[%clk 0:02:55]}  c5 {[%clk 0:02:51]} 6. dxc5 {[%clk 0:02:48]}  Bxc5 {[%clk 0:02:52]} 7. Na4 {[%clk 0:02:46]}  Bxb6 {[%clk 0:02:37]} 8. Nxb6 {[%clk 0:02:44]}  Qxb6 {[%clk 0:02:38]} 9. Nf3 {[%clk 0:02:41]}  Nf6 {[%clk 0:02:38]} 10. e3 {[%clk 0:02:37]}  O-O {[%clk 0:02:36]} 11. Be2 {[%clk 0:02:34]}  a5 {[%clk 0:02:37]} 12. O-O {[%clk 0:02:31]}  Ba6 {[%clk 0:02:37]} 13. b3 {[%clk 0:02:30]}  Nbd7 {[%clk 0:02:28]} 14. Bb2 {[%clk 0:02:26]}  a4 {[%clk 0:02:26]} 15. Bd4 {[%clk 0:02:23]}  Qb7 {[%clk 0:02:25]} 16. Bxa6 {[%clk 0:02:14]}  Rxa6 {[%clk 0:02:26]} 17. Ne5 {[%clk 0:02:09]}  Rfa8 {[%clk 0:02:02]} 18. Nxd7 {[%clk 0:01:55]}  Nxd7 {[%clk 0:01:57]} 19. Rb1 {[%clk 0:01:55]}  axb3 {[%clk 0:01:45]} 20. Rxb3 {[%clk 0:01:55]}  Qc6 {[%clk 0:01:40]} 21. Qh5 {[%clk 0:01:38]}  Rxa2 {[%clk 0:01:16]} 22. h4 {[%clk 0:01:18]}  Qd6 {[%clk 0:01:01]} 23. Rb7 {[%clk 0:01:11]}  e5 {[%clk 0:00:51]} 24. Rxd7 {[%clk 0:01:11]}  Qxd7 {[%clk 0:00:49]} 25. Qxe5 {[%clk 0:01:12]}  f6 {[%clk 0:00:39]} 26. Qg3 {[%clk 0:01:12]}  R2a6 {[%clk 0:00:28]} 27. Rb1 {[%clk 0:01:07]}  Rc8 {[%clk 0:00:26]} 28. h5 {[%clk 0:01:00]}  Qf5 {[%clk 0:00:20]} 29. Rb8 {[%clk 0:00:51]}  Ra8 {[%clk 0:00:16]} 30. Rxa8 {[%clk 0:00:44]}  Rxa8 {[%clk 0:00:16]} 31. h6 {[%clk 0:00:44]}  g5 {[%clk 0:00:11]} 32. Qc7 {[%clk 0:00:25]}  Qb1+ {[%clk 0:00:11]} 33. Kh2 {[%clk 0:00:25]}  Qg6 {[%clk 0:00:12]} 34. Qc6 {[%clk 0:00:24]}  Qxh6+ {[%clk 0:00:11]} 35. Kg1 {[%clk 0:00:24]}  Rf8 {[%clk 0:00:11]} 36. Qxd5+ {[%clk 0:00:23]}  Kg7 {[%clk 0:00:11]} 37. e4 {[%clk 0:00:20]}  Qg6 {[%clk 0:00:11]} 38. e5 {[%clk 0:00:20]}  fxe5 {[%clk 0:00:07]} 39. Qxe5+ {[%clk 0:00:20]}  Kg8 {[%clk 0:00:07]} 40. Qd5+ {[%clk 0:00:21]}  Rf7 {[%clk 0:00:04]} 41. Qd8+ {[%clk 0:00:21]}  Rf8 {[%clk 0:00:05]} 42. Qd5+ {[%clk 0:00:21]}  Rf7 {[%clk 0:00:05]} 43. Qa8+ {[%clk 0:00:19]}  Rf8 {[%clk 0:00:05]} 44. Qd5+ {[%clk 0:00:19]} 1/2-1/2


[Site "https://www.chess.com"]

[Event "Titled Tuesday Blitz April 11 Early 2023"]
[White "Dehtiarov, Roman"]
[Black "Demchenko, Anton"]
[WhiteFideId "14186640"]
[BlackFideId "4160258"]
[WhiteElo "2189"]
[BlackElo "2545"]
[Result "0-1"]
[Round "11"]
[TimeControl "180+2"]
[Date "2023.04.11"]
[WhiteClock "0:00:43"]
[BlackClock "0:00:31"]

1. d4 {[%clk 0:03:00]}  Nf6 {[%clk 0:02:58]} 2. c4 {[%clk 0:03:01]}  d6 {[%clk 0:02:59]} 3. Nc3 {[%clk 0:03:01]}  e5 {[%clk 0:02:58]} 4. dxe5 {[%clk 0:03:01]}  dxe5 {[%clk 0:02:57]} 5. Qxd8+ {[%clk 0:03:02]}  Kxd8 {[%clk 0:02:58]} 6. Bg5 {[%clk 0:03:02]}  Be6 {[%clk 0:02:57]} 7. Nf3 {[%clk 0:03:02]}  Nc6 {[%clk 0:02:56]} 8. O-O-O+ {[%clk 0:03:01]}  Kc8 {[%clk 0:02:56]} 9. Nd5 {[%clk 0:03:00]}  Nd7 {[%clk 0:02:56]} 10. e4 {[%clk 0:03:00]}  f6 {[%clk 0:02:55]} 11. Be3 {[%clk 0:03:00]}  a5 {[%clk 0:02:53]} 12. Nd2 {[%clk 0:03:00]}  a4 {[%clk 0:02:50]} 13. f3 {[%clk 0:03:00]}  Bc5 {[%clk 0:02:50]} 14. Bxc5 {[%clk 0:03:00]}  Nxc5 {[%clk 0:02:50]} 15. Kc2 {[%clk 0:03:00]}  Kb8 {[%clk 0:02:12]} 16. Nb1 {[%clk 0:02:50]}  Nd4+ {[%clk 0:02:01]} 17. Kc1 {[%clk 0:02:50]}  c6 {[%clk 0:02:00]} 18. Ne3 {[%clk 0:02:47]}  Rd8 {[%clk 0:01:48]} 19. Nc3 {[%clk 0:02:44]}  Kc7 {[%clk 0:01:38]} 20. Ne2 {[%clk 0:02:36]}  a3 {[%clk 0:01:22]} 21. b4 {[%clk 0:02:21]}  Na4 {[%clk 0:01:22]} 22. Nxd4 {[%clk 0:02:18]}  exd4 {[%clk 0:01:22]} 23. Nc2 {[%clk 0:02:19]}  Nc3 {[%clk 0:01:23]} 24. Rxd4 {[%clk 0:02:19]}  Nxa2+ {[%clk 0:01:23]} 25. Kb1 {[%clk 0:02:19]}  Nxb4 {[%clk 0:00:59]} 26. Rxd8 {[%clk 0:02:02]}  a2+ {[%clk 0:00:59]} 27. Kb2 {[%clk 0:02:01]}  Kxd8 {[%clk 0:01:00]} 28. Na1 {[%clk 0:01:57]}  c5 {[%clk 0:00:51]} 29. Be2 {[%clk 0:01:57]}  Kc7 {[%clk 0:00:51]} 30. Rd1 {[%clk 0:01:57]}  b6 {[%clk 0:00:48]} 31. f4 {[%clk 0:01:46]}  g5 {[%clk 0:00:40]} 32. e5 {[%clk 0:01:41]}  gxf4 {[%clk 0:00:33]} 33. exf6 {[%clk 0:01:36]}  Rf8 {[%clk 0:00:33]} 34. Rf1 {[%clk 0:01:36]}  Rxf6 {[%clk 0:00:33]} 35. g3 {[%clk 0:01:36]}  Rh6 {[%clk 0:00:33]} 36. Rf2 {[%clk 0:01:28]}  fxg3 {[%clk 0:00:34]} 37. hxg3 {[%clk 0:01:28]}  Rh1 {[%clk 0:00:33]} 38. Bf1 {[%clk 0:01:26]}  Bxc4 {[%clk 0:00:29]} 39. Bxc4 {[%clk 0:01:23]}  Rb1+ {[%clk 0:00:30]} 40. Ka3 {[%clk 0:01:14]}  Rxa1 {[%clk 0:00:30]} 41. Rf7+ {[%clk 0:01:00]}  Kd6 {[%clk 0:00:31]} 42. Rf6+ {[%clk 0:00:57]}  Ke5 {[%clk 0:00:31]} 43. Rxb6 {[%clk 0:00:51]}  Rb1 {[%clk 0:00:32]} 44. Bxa2 {[%clk 0:00:43]}  Nc2+ {[%clk 0:00:31]} 0-1


[Site "https://www.chess.com"]

[Event "Titled Tuesday Blitz April 11 Early 2023"]
[White "Kuzubov, Yuriy"]
[Black "Averjanov, Alexey"]
[WhiteFideId "14112906"]
[BlackFideId "14109867"]
[WhiteElo "2496"]
[BlackElo "2732"]
[Result "0-1"]
[Round "11"]
[TimeControl "180+2"]
[Date "2023.04.11"]
[WhiteClock "0:00:05"]
[BlackClock "0:00:23"]

1. d4 {[%clk 0:02:56]}  d5 {[%clk 0:02:59]} 2. c4 {[%clk 0:02:56]}  dxc4 {[%clk 0:02:59]} 3. Nf3 {[%clk 0:02:56]}  Nf6 {[%clk 0:02:59]} 4. e3 {[%clk 0:02:56]}  e6 {[%clk 0:02:59]} 5. Bxc4 {[%clk 0:02:57]}  a6 {[%clk 0:03:00]} 6. O-O {[%clk 0:02:56]}  b5 {[%clk 0:03:00]} 7. Bd3 {[%clk 0:02:53]}  Bb7 {[%clk 0:03:01]} 8. a4 {[%clk 0:02:52]}  b4 {[%clk 0:03:01]} 9. Nbd2 {[%clk 0:02:47]}  Nbd7 {[%clk 0:02:59]} 10. b3 {[%clk 0:02:46]}  c5 {[%clk 0:02:58]} 11. Bb2 {[%clk 0:02:47]}  Be7 {[%clk 0:02:58]} 12. Qe2 {[%clk 0:02:44]}  O-O {[%clk 0:02:56]} 13. Nc4 {[%clk 0:02:41]}  Qc7 {[%clk 0:02:56]} 14. Rac1 {[%clk 0:02:39]}  Rfd8 {[%clk 0:02:57]} 15. e4 {[%clk 0:02:28]}  cxd4 {[%clk 0:02:54]} 16. Bxd4 {[%clk 0:02:27]}  Rac8 {[%clk 0:02:39]} 17. Rc2 {[%clk 0:01:44]}  Nc5 {[%clk 0:02:31]} 18. Bxc5 {[%clk 0:01:06]}  Bxc5 {[%clk 0:02:16]} 19. Nce5 {[%clk 0:00:53]}  Qb6 {[%clk 0:01:59]} 20. Ng5 {[%clk 0:00:51]}  Rc7 {[%clk 0:01:50]} 21. Nc4 {[%clk 0:00:17]}  Qa7 {[%clk 0:01:39]} 22. e5 {[%clk 0:00:14]}  h6 {[%clk 0:01:24]} 23. Nxe6 {[%clk 0:00:14]}  fxe6 {[%clk 0:01:19]} 24. exf6 {[%clk 0:00:14]}  Bd5 {[%clk 0:01:12]} 25. Be4 {[%clk 0:00:12]}  gxf6 {[%clk 0:01:04]} 26. Bxd5 {[%clk 0:00:12]}  exd5 {[%clk 0:01:05]} 27. Qe6+ {[%clk 0:00:10]}  Kg7 {[%clk 0:01:03]} 28. Ne3 {[%clk 0:00:09]}  Bxe3 {[%clk 0:00:59]} 29. Rxc7+ {[%clk 0:00:08]}  Qxc7 {[%clk 0:01:00]} 30. Qxe3 {[%clk 0:00:08]}  d4 {[%clk 0:00:54]} 31. Qd3 {[%clk 0:00:08]}  Qc3 {[%clk 0:00:48]} 32. Qe2 {[%clk 0:00:06]}  Kf7 {[%clk 0:00:40]} 33. Re1 {[%clk 0:00:06]}  Qc7 {[%clk 0:00:33]} 34. Qd3 {[%clk 0:00:05]}  Kg7 {[%clk 0:00:31]} 35. h4 {[%clk 0:00:06]}  h5 {[%clk 0:00:30]} 36. Qf3 {[%clk 0:00:05]}  d3 {[%clk 0:00:23]} 0-1


[Site "https://www.chess.com"]

[Event "Titled Tuesday Blitz April 11 Early 2023"]
[White "Bharath Subramaniyam H"]
[Black "Souleidis, Georgios"]
[WhiteFideId "46634827"]
[BlackFideId "4206827"]
[WhiteElo "2395"]
[BlackElo "2401"]
[Result "1-0"]
[Round "11"]
[TimeControl "180+2"]
[Date "2023.04.11"]
[WhiteClock "0:00:11"]
[BlackClock "0:00:02"]

1. d4 {[%clk 0:02:59]}  Nf6 {[%clk 0:02:53]} 2. Nc3 {[%clk 0:02:59]}  d5 {[%clk 0:02:53]} 3. Bf4 {[%clk 0:02:59]}  g6 {[%clk 0:02:52]} 4. Nb5 {[%clk 0:02:56]}  Na6 {[%clk 0:02:52]} 5. e3 {[%clk 0:02:57]}  Bg7 {[%clk 0:02:52]} 6. Nf3 {[%clk 0:02:57]}  O-O {[%clk 0:02:52]} 7. h3 {[%clk 0:02:57]}  c6 {[%clk 0:02:51]} 8. Nc3 {[%clk 0:02:58]}  Nc7 {[%clk 0:02:47]} 9. Bd3 {[%clk 0:02:57]}  Ne6 {[%clk 0:02:47]} 10. Be5 {[%clk 0:02:51]}  c5 {[%clk 0:02:47]} 11. O-O {[%clk 0:02:49]}  a6 {[%clk 0:02:42]} 12. a4 {[%clk 0:02:49]}  b6 {[%clk 0:02:34]} 13. Qb1 {[%clk 0:02:17]}  Bb7 {[%clk 0:02:32]} 14. b4 {[%clk 0:02:16]}  c4 {[%clk 0:02:18]} 15. Be2 {[%clk 0:02:15]}  Rc8 {[%clk 0:02:10]} 16. Nd2 {[%clk 0:02:10]}  Qd7 {[%clk 0:02:00]} 17. Rd1 {[%clk 0:02:01]}  Ng5 {[%clk 0:01:44]} 18. Bf4 {[%clk 0:01:56]}  Nge4 {[%clk 0:01:36]} 19. Ndxe4 {[%clk 0:01:55]}  Nxe4 {[%clk 0:01:37]} 20. Nxe4 {[%clk 0:01:55]}  dxe4 {[%clk 0:01:38]} 21. c3 {[%clk 0:01:54]}  Bd5 {[%clk 0:01:37]} 22. Bg4 {[%clk 0:01:41]}  e6 {[%clk 0:01:30]} 23. Be2 {[%clk 0:01:38]}  Qe7 {[%clk 0:01:27]} 24. Rf1 {[%clk 0:01:33]}  f5 {[%clk 0:01:18]} 25. Bh2 {[%clk 0:01:30]}  e5 {[%clk 0:01:12]} 26. dxe5 {[%clk 0:01:19]}  Bxe5 {[%clk 0:01:13]} 27. Bxe5 {[%clk 0:01:18]}  Qxe5 {[%clk 0:01:14]} 28. Rd1 {[%clk 0:01:17]}  f4 {[%clk 0:01:04]} 29. exf4 {[%clk 0:01:10]}  Rxf4 {[%clk 0:01:05]} 30. Qc1 {[%clk 0:01:10]}  Rcf8 {[%clk 0:01:03]} 31. Rf1 {[%clk 0:01:10]}  Be6 {[%clk 0:00:51]} 32. Qe3 {[%clk 0:01:08]}  Qg5 {[%clk 0:00:48]} 33. Rad1 {[%clk 0:01:01]}  b5 {[%clk 0:00:37]} 34. axb5 {[%clk 0:01:00]}  axb5 {[%clk 0:00:38]} 35. Rd6 {[%clk 0:00:56]}  Bc8 {[%clk 0:00:38]} 36. Rfd1 {[%clk 0:00:49]}  Qe7 {[%clk 0:00:32]} 37. f3 {[%clk 0:00:46]}  Qg5 {[%clk 0:00:23]} 38. R6d5 {[%clk 0:00:44]}  Qg3 {[%clk 0:00:22]} 39. Qf2 {[%clk 0:00:44]}  Qxf2+ {[%clk 0:00:19]} 40. Kxf2 {[%clk 0:00:45]}  exf3 {[%clk 0:00:19]} 41. gxf3 {[%clk 0:00:44]}  Bb7 {[%clk 0:00:18]} 42. R5d4 {[%clk 0:00:35]}  R4f6 {[%clk 0:00:17]} 43. Rd6 {[%clk 0:00:33]}  Rf4 {[%clk 0:00:16]} 44. R1d4 {[%clk 0:00:33]}  R4f5 {[%clk 0:00:16]} 45. Rd8 {[%clk 0:00:24]}  Rxd8 {[%clk 0:00:08]} 46. Rxd8+ {[%clk 0:00:24]}  Kg7 {[%clk 0:00:08]} 47. Rd7+ {[%clk 0:00:16]}  Rf7 {[%clk 0:00:09]} 48. Rd6 {[%clk 0:00:16]}  Rf6 {[%clk 0:00:08]} 49. Rd4 {[%clk 0:00:14]}  Bc8 {[%clk 0:00:05]} 50. h4 {[%clk 0:00:13]}  Rf7 {[%clk 0:00:03]} 51. f4 {[%clk 0:00:12]}  Re7 {[%clk 0:00:02]} 52. Rd5 {[%clk 0:00:12]}  Bd7 {[%clk 0:00:01]} 53. Bf3 {[%clk 0:00:12]}  Be8 {[%clk 0:00:02]} 54. Re5 {[%clk 0:00:11]}  Kf6 {[%clk 0:00:01]} 55. Rxe7 {[%clk 0:00:08]}  Kxe7 {[%clk 0:00:02]} 56. Ke3 {[%clk 0:00:08]}  Kd6 {[%clk 0:00:03]} 57. Kd4 {[%clk 0:00:09]}  Bd7 {[%clk 0:00:03]} 58. Bd5 {[%clk 0:00:09]}  Be8 {[%clk 0:00:03]} 59. Bg8 {[%clk 0:00:09]}  h6 {[%clk 0:00:03]} 60. Bd5 {[%clk 0:00:10]}  Bd7 {[%clk 0:00:02]} 61. Bf7 {[%clk 0:00:10]}  Bf5 {[%clk 0:00:03]} 62. Be8 {[%clk 0:00:11]}  Bd3 {[%clk 0:00:01]} 63. Bxb5 {[%clk 0:00:10]}  Bf5 {[%clk 0:00:02]} 64. Bxc4 {[%clk 0:00:11]} 1-0


[Site "https://www.chess.com"]